bitfinex/quotes_SOLUSD_20250908
["timestamp","ask_amount","ask_price","bid_price","bid_amount"]
[1757338176956,5.32571022,214.79,214.76,0.03]
[1757338177449,0.67,214.78,214.77,36.94]
[1757338177655,0.67,214.78,214.76,0.03]
[1757338177855,19.64671349,214.79,214.77,36.94]
[1757338178172,49.48463644,214.78,214.77,36.94]
[1757338178370,50.15463644,214.78,214.77,36.94]
[1757338178760,4.65614378,214.77,214.76,0.03]
[1757338179071,5.32614378,214.77,214.76,36.97]
[1757338181264,5.32614378,214.77,214.76,0.03]
[1757338181456,5.32614378,214.77,214.76,36.95]
[1757338182069,4.65614378,214.77,214.76,36.95]
[1757338182271,22.27346549,214.77,214.76,0.03]
[1757338182480,26.0,214.74,214.73,0.03]
[1757338182785,26.0,214.74,214.63,0.28]
[1757338182786,13.59559401,214.69,214.63,0.28]
[1757338182957,7.54360028,214.64,214.63,0.28]
[1757338183155,4.65896384,214.64,214.63,0.28]
[1757338183353,5.12584851,214.65,214.63,0.28]
[1757338183552,0.67,214.68,214.63,0.28]
[1757338183553,4.65838708,214.67,214.64,0.72]
[1757338183759,0.46709126,214.69,214.65,0.72]
[1757338184071,0.46709126,214.69,214.66,0.72]
[1757338184568,0.46709126,214.69,214.67,36.92]
[1757338184757,4.65778759,214.7,214.68,0.72]
[1757338185173,5.12454691,214.71,214.68,0.72]
[1757338186076,0.46709126,214.72,214.68,0.72]
[1757338186374,3.3517277,214.72,214.69,0.72]
[1757338186572,8.00895858,214.72,214.67,37.64]
[1757338186767,8.00895858,214.72,214.68,0.72]
[1757338188780,46.6,214.71,214.69,36.92]
[1757338189083,2.88463644,214.7,214.69,36.92]
[1757338189383,4.65766185,214.7,214.69,36.92]
[1757338189589,46.6,214.71,214.69,36.92]
[1757338190178,47.06709126,214.71,214.69,36.92]
[1757338190663,54.60919477,214.71,214.69,36.92]
[1757338191167,51.72455833,214.71,214.7,36.92]
[1757338191373,8.00919477,214.71,214.7,36.92]
[1757338191572,7.54210351,214.71,214.7,36.92]
[1757338192093,4.65746707,214.71,214.7,36.92]
[1757338193066,8.00896246,214.72,214.7,36.92]
[1757338194069,5.12432602,214.72,214.7,36.92]
[1757338194276,0.46709126,214.72,214.71,0.72]
[1757338194466,137.05681397,214.74,214.71,0.72]
[1757338194680,137.05681397,214.74,214.72,0.72]
[1757338194988,137.05681397,214.74,214.7,37.64]
[1757338195189,137.05681397,214.74,214.71,0.72]
[1757338195593,137.05681397,214.74,214.72,36.9]
[1757338196282,132.4,214.74,214.73,0.72]
[1757338196479,132.4,214.74,214.72,36.9]
[1757338196688,132.4,214.74,214.72,37.62]
[1757338197678,4.65661398,214.75,214.73,0.72]
[1757338197993,8.00810754,214.76,214.73,0.72]
[1757338198225,5.1234711,214.76,214.73,0.72]
[1757338198489,0.46709126,214.76,214.73,0.72]
[1757338198998,9.63136231,214.77,214.73,0.72]
[1757338199198,10.30136231,214.77,214.73,0.72]
[1757338200205,0.46709126,214.77,214.72,36.9]
[1757338200373,132.4,214.82,214.76,26.0]
[1757338200577,132.4,214.83,214.77,37.6]
[1757338200780,0.06,214.85,214.78,0.72]
[1757338200988,0.06,214.85,214.8,26.0]
[1757338201208,0.06,214.85,214.81,37.6]
[1757338201676,0.06,214.85,214.82,0.72]
[1757338201883,0.06,214.85,214.84,26.0]
[1757338202087,0.06,214.85,214.84,26.72]
[1757338202283,0.06,214.85,214.84,0.72]
[1757338202488,0.06,214.85,214.84,26.72]
[1757338202670,0.06,214.85,214.84,0.72]
[1757338202869,0.06,214.85,214.84,36.72]
[1757338203475,0.06,214.85,214.78,26.0]
[1757338203680,0.06,214.85,214.79,36.88]
[1757338203881,4.50810369,214.82,214.8,36.88]
[1757338204083,1.13709126,214.84,214.8,36.88]
[1757338204288,5.12184376,214.84,214.8,36.88]
[1757338204488,5.12184376,214.84,214.8,37.6]
[1757338204677,0.46709126,214.84,214.8,37.6]
[1757338204878,9.68974113,214.85,214.81,0.72]
[1757338205098,0.67,214.84,214.8,36.88]
[1757338205291,0.46709126,214.83,214.81,36.86]
[1757338205685,0.46709126,214.84,214.81,36.86]
[1757338205995,4.97519495,214.84,214.81,36.86]
[1757338206198,4.50810369,214.82,214.81,36.86]
[1757338206390,4.71449044,214.85,214.81,37.52]
[1757338206780,4.50810369,214.82,214.81,36.86]
[1757338208400,9.16327202,214.82,214.78,0.66]
[1757338208587,4.50810369,214.79,214.75,0.66]
[1757338208786,4.50810369,214.76,214.69,0.66]
[1757338208986,0.46709126,214.78,214.7,36.86]
[1757338209182,4.50810369,214.77,214.73,26.0]
[1757338209388,4.50810369,214.77,214.74,37.52]
[1757338209689,4.50810369,214.77,214.75,0.66]
[1757338209900,4.50810369,214.77,214.76,0.66]
[1757338210202,9.16432743,214.77,214.73,26.66]
[1757338210394,5.843315,214.77,214.74,36.84]
[1757338210598,5.12302472,214.78,214.74,36.84]
[1757338211088,5.12302472,214.78,214.74,37.5]
[1757338211497,4.50810369,214.75,214.74,37.5]
[1757338211889,4.50810369,214.76,214.74,37.5]
[1757338212090,4.50810369,214.76,214.75,0.66]
[1757338212293,4.50810369,214.77,214.75,0.66]
[1757338212491,4.50810369,214.77,214.74,36.84]
[1757338212492,4.50810369,214.76,214.74,36.84]
[1757338212694,4.50810369,214.76,214.74,37.5]
[1757338213005,4.50810369,214.75,214.74,36.84]
[1757338213185,4.50810369,214.75,214.7,0.66]
[1757338213390,4.50810369,214.74,214.71,63.5]
[1757338213689,5.12307294,214.78,214.72,0.66]
[1757338213904,4.50810369,214.78,214.72,5.31714258]
[1757338214102,0.46709126,214.81,214.73,0.66]
[1757338214293,47.06709126,214.83,214.75,26.0]
[1757338214494,13.97005751,214.81,214.76,37.5]
[1757338214800,46.6,214.83,214.77,37.5]
[1757338215108,51.10810369,214.83,214.78,0.66]
[1757338215402,55.76295083,214.83,214.79,0.66]
[1757338215712,51.10810369,214.83,214.8,0.66]
[1757338216004,55.7630368,214.83,214.81,36.84]
[1757338216310,46.6,214.83,214.82,0.66]
[1757338216489,0.06,214.85,214.82,0.66]
[1757338216691,0.06,214.85,214.83,0.66]
[1757338216890,0.06,214.85,214.82,0.66]
[1757338217092,0.06,214.85,214.83,0.66]
[1757338217389,0.72,214.84,214.79,0.66]
[1757338217704,4.50810369,214.8,214.79,36.84]
[1757338217894,9.88359717,214.8,214.79,36.84]
[1757338218284,23.47919118,214.8,214.79,36.84]
[1757338218487,13.59559401,214.79,214.67,9.68961204]
[1757338218712,4.50810369,214.73,214.69,36.84]
[1757338218914,4.50810369,214.73,214.69,37.5]
[1757338219112,4.50810369,214.74,214.69,37.5]
[1757338219516,4.50810369,214.75,214.7,0.66]
[1757338219725,5.69519495,214.74,214.69,36.84]
[1757338219900,9.16526828,214.73,214.69,37.5]
[1757338220099,5.37592699,214.78,214.7,0.66]
[1757338220290,4.50810369,214.76,214.7,0.66]
[1757338220493,10.60162874,214.76,214.7,0.66]
[1757338221017,11.06872,214.75,214.7,0.66]
[1757338221597,11.78872,214.75,214.7,0.66]
[1757338221812,4.65701113,214.73,214.69,36.84]
[1757338222006,15.25863987,214.73,214.69,36.84]
[1757338222207,15.25863987,214.73,214.69,37.5]
[1757338222405,10.60162874,214.72,214.68,0.03]
[1757338222601,10.60162874,214.72,214.69,36.82]
[1757338222913,0.72,214.71,214.68,0.03]
[1757338223123,0.72,214.71,214.7,0.03]
[1757338223688,47.06709126,214.72,214.7,0.03]
[1757338223903,4.65617216,214.77,214.7,5.34760215]
[1757338224102,5.12302497,214.78,214.71,0.66]
[1757338224431,46.6,214.78,214.71,0.66]
[1757338224609,13.97200941,214.83,214.73,26.0]
[1757338224808,13.97200941,214.83,214.77,26.0]
[1757338225014,0.06,214.85,214.78,0.66]
[1757338225220,0.06,214.85,214.79,36.82]
[1757338225420,0.06,214.85,214.79,37.48]
[1757338225913,4.71453865,214.85,214.79,37.48]
[1757338226125,0.06,214.85,214.79,37.48]
[1757338226311,0.06,214.85,214.8,0.66]
[1757338226709,0.06,214.85,214.81,0.66]
[1757338226904,0.06,214.85,214.78,0.66]
[1757338227123,10.60162874,214.8,214.79,36.82]
[1757338227328,10.60162874,214.8,214.79,17.14]
[1757338227538,11.32162874,214.8,214.79,36.82]
[1757338227826,11.32162874,214.8,214.72,0.66]
[1757338228032,10.60162874,214.8,214.73,36.82]
[1757338228251,10.60162874,214.8,214.73,37.48]
[1757338229131,10.60162874,214.78,214.73,0.66]
[1757338229320,10.60162874,214.77,214.71,0.66]
[1757338229518,10.60162874,214.77,214.74,36.82]
[1757338229826,46.6,214.79,214.74,36.82]
[1757338230126,62.57745317,214.79,214.74,36.82]
[1757338230304,10.60162874,214.76,214.75,36.82]
[1757338230725,47.78709126,214.78,214.75,36.82]
[1757338230726,47.06709126,214.78,214.75,36.82]
[1757338230922,57.66872,214.78,214.75,36.82]
[1757338231326,47.06709126,214.78,214.75,36.82]
[1757338231516,46.6,214.78,214.75,37.48]
[1757338232039,46.6,214.78,214.76,0.66]
[1757338232254,46.6,214.78,214.75,36.82]
[1757338232418,46.6,214.78,214.76,0.66]
[1757338233537,46.6,214.78,214.75,36.82]
[1757338233724,46.6,214.78,214.75,37.48]
[1757338233914,15.25818811,214.76,214.71,0.66]
[1757338234118,11.06872,214.77,214.72,36.82]
[1757338234450,15.72499564,214.77,214.72,37.48]
[1757338234620,0.72,214.76,214.72,36.82]
[1757338234816,0.46709126,214.77,214.72,36.82]
[1757338235126,46.6,214.78,214.73,0.66]
[1757338235333,46.6,214.78,214.74,0.66]
[1757338235527,46.6,214.78,214.75,0.68]
[1757338235912,46.6,214.78,214.72,37.5]
[1757338236112,51.25595257,214.78,214.73,0.68]
[1757338236326,46.6,214.77,214.74,0.68]
[1757338236520,46.6,214.77,214.75,0.68]
[1757338236940,46.6,214.77,214.72,41.47721937]
[1757338237124,46.6,214.77,214.74,0.68]
[1757338237321,46.6,214.81,214.75,26.0]
[1757338237644,46.6,214.81,214.76,37.48]
[1757338237930,0.06,214.85,214.8,4.65549348]
[1757338238138,0.06,214.85,214.81,37.48]
[1757338239032,0.67,214.84,214.82,36.8]
[1757338239345,11.27162874,214.83,214.76,26.0]
[1757338239635,11.12872,214.85,214.77,63.48]
[1757338239835,0.06,214.85,214.78,0.68]
[1757338240026,0.06,214.85,214.79,4.65571022]
[1757338240232,0.06,214.85,214.8,0.68]
[1757338240429,0.06,214.85,214.81,37.48]
[1757338240939,0.06,214.85,214.84,26.0]
[1757338241314,0.06,214.85,214.84,26.68]
[1757338242134,0.06,214.85,214.84,45.39568336]
[1757338243117,0.06,214.85,214.84,82.19568336]
[1757338243317,0.06,214.85,214.84,45.39568336]
[1757338243528,0.06,214.85,214.84,82.19568336]
[1757338245236,0.06,214.88,214.84,93.8322501]
[1757338245545,0.06,214.88,214.86,13.59559401]
[1757338245723,0.06,214.88,214.87,50.84099169]
[1757338246040,0.06,214.9,214.87,50.84099169]
[1757338246041,0.06,214.9,214.89,39.59559401]
[1757338246244,0.06,214.93,214.92,39.59559401]
[1757338246444,0.06,214.93,214.92,76.84088342]
[1757338246650,0.06,214.93,214.92,77.52088342]
[1757338247826,0.06,214.94,214.93,13.59559401]
[1757338248122,0.06,214.94,214.93,0.68]
[1757338248328,0.06,214.94,214.93,37.92526776]
[1757338249938,0.06,214.94,214.93,42.57794537]
[1757338251141,0.06,214.94,214.93,56.17353938]
[1757338251939,0.06,214.94,214.93,19.39353938]
[1757338252140,0.06,214.94,214.93,56.15353938]
[1757338252342,0.06,214.94,214.93,19.39353938]
[1757338252543,0.06,214.94,214.93,56.15353938]
[1757338255635,0.06,214.98,214.94,33.59559401]
[1757338255949,0.06,214.98,214.94,34.27559401]
[1757338256331,0.06,214.98,214.94,71.03559401]
[1757338256749,0.06,214.98,214.94,72.89558332]
[1757338256948,0.06,214.98,214.95,14.74081848]
[1757338257345,0.06,214.98,214.95,19.39306318]
[1757338257952,0.06,214.98,214.95,56.15306318]
[1757338258974,0.06,214.98,214.95,19.39306318]
[1757338259133,0.06,214.98,214.95,56.13306318]
[1757338259955,0.06,214.98,214.95,19.39306318]
[1757338260156,0.06,214.98,214.95,56.13306318]
[1757338260746,0.06,214.98,214.95,57.99313898]
[1757338261335,0.06,214.98,214.95,41.25313898]
[1757338261753,0.06,214.98,214.95,57.99313898]
[1757338261956,0.06,214.98,214.95,77.99313898]
[1757338262272,1e-08,214.96,214.95,77.99313898]
[1757338262836,0.06,214.98,214.97,39.59559401]
[1757338263036,0.06,214.98,214.97,50.80077519]
[1757338263247,0.06,214.98,214.97,51.48077519]
[1757338263439,1e-08,214.98,214.97,51.48077519]
[1757338263644,0.06,215.0,214.98,18.2471895]
[1757338263847,0.06,215.0,214.98,18.9271895]
[1757338264246,0.06,215.0,214.98,54.9871895]
[1757338264539,0.06,215.0,214.98,55.6671895]
[1757338264734,0.06,215.0,214.98,50.33559401]
[1757338264973,0.73,214.99,214.92,0.71]
[1757338265262,0.73,214.99,214.92,0.03]
[1757338265474,0.73,214.99,214.93,36.74]
[1757338265644,0.69,214.98,214.92,0.03]
[1757338265835,0.69,214.98,214.93,62.74]
[1757338266041,0.69,214.97,214.93,36.74]
[1757338266341,0.69,214.97,214.94,36.74]
[1757338266643,0.69,214.97,214.96,26.0]
[1757338266838,0.06,214.99,214.96,26.0]
[1757338266839,0.06,214.99,214.96,62.74]
[1757338267038,0.75,214.99,214.96,62.74]
[1757338267457,0.06,214.99,214.96,62.74]
[1757338267654,0.69,214.98,214.96,62.74]
[1757338268056,0.06,214.99,214.97,14.27559401]
[1757338268264,0.06,214.99,214.98,36.74]
[1757338268564,0.06,214.99,214.98,51.01559401]
[1757338268767,0.06,214.99,214.98,26.0]
[1757338268966,0.06,214.99,214.98,62.74]
[1757338269550,0.75,214.99,214.96,26.0]
[1757338269860,0.06,214.99,214.95,18.24777146]
[1757338270160,0.06,214.99,214.98,26.0]
[1757338270368,0.06,214.99,214.95,14.27559401]
[1757338270546,0.06,214.99,214.96,36.74]
[1757338270739,0.06,214.99,214.98,26.0]
[1757338270937,0.06,214.99,214.98,36.72]
[1757338271339,0.75,214.99,214.92,4.68286905]
[1757338271558,0.75,214.99,214.96,26.0]
[1757338271767,0.69,214.98,214.97,36.72]
[1757338272848,0.69,214.98,214.92,0.03]
[1757338273045,0.69,214.98,214.96,26.0]
[1757338273247,0.06,214.99,214.97,36.72]
[1757338273652,0.75,214.99,214.97,36.72]
[1757338273856,0.06,214.99,214.97,36.72]
[1757338274267,0.06,214.99,214.98,14.27559401]
[1757338274478,0.06,214.99,214.98,14.06075355]
[1757338274775,0.06,214.99,214.98,14.74075355]
[1757338275753,0.06,214.99,214.98,19.39234904]
[1757338275955,0.06,214.99,214.98,56.11234904]
[1757338277578,0.06,215.0,214.99,13.59559401]
[1757338277870,0.06,215.0,214.99,18.24697314]
[1757338278061,0.06,215.0,214.99,55.64697314]
[1757338278265,0.06,215.0,214.99,13.59559401]
[1757338278467,0.06,215.0,214.99,50.31559401]
[1757338278666,0.06,215.0,214.99,54.96697314]
[1757338278847,0.06,215.0,214.99,55.64697314]
[1757338279048,0.06,215.0,214.99,54.96697314]
[1757338279247,0.06,215.0,214.99,55.64697314]
[1757338279880,0.06,215.0,214.98,26.0]
[1757338280060,0.75,215.0,214.99,36.72]
[1757338281177,0.06,215.0,214.99,36.72]
[1757338281472,0.06,215.0,214.98,26.0]
[1757338281773,0.06,215.0,214.99,36.72]
[1757338282484,0.06,215.0,214.99,51.46073192]
[1757338283367,0.06,215.01,214.99,51.46073192]
[1757338283368,0.06,215.01,215.0,13.59559401]
[1757338283673,0.06,215.01,215.0,14.27559401]
[1757338283855,0.06,215.01,215.0,18.9267568]
[1757338284670,0.06,215.01,215.0,18.2467568]
[1757338284873,0.06,215.01,215.0,54.9667568]
[1757338285473,0.75,215.01,214.96,132.7]
[1757338285784,0.06,215.01,214.97,50.31559401]
[1757338286073,0.06,215.01,215.0,26.0]
[1757338286274,0.06,215.01,215.0,62.72]
[1757338286677,0.06,215.01,215.0,76.99559401]
[1757338286877,0.06,215.01,215.0,81.6467568]
[1757338288664,0.06,215.02,215.01,13.59559401]
[1757338288973,0.06,215.03,215.01,14.74068865]
[1757338289275,0.06,215.03,215.02,50.31559401]
[1757338289474,0.06,215.03,215.02,52.17515097]
[1757338289976,0.75,215.03,214.95,0.03]
[1757338290274,0.75,215.03,214.96,36.72]
[1757338290454,0.69,215.02,214.99,26.0]
[1757338290653,0.69,215.01,214.95,0.03]
[1757338290981,0.69,215.01,214.99,26.0]
[1757338291156,0.06,215.03,214.95,13.62559401]
[1757338291360,0.06,215.03,214.96,36.72]
[1757338291666,0.69,215.02,215.0,26.0]
[1757338291873,0.06,215.03,215.0,26.0]
[1757338291874,0.06,215.03,215.01,36.72]
[1757338292063,0.06,215.03,215.02,36.72]
[1757338292385,0.06,215.03,214.97,26.0]
[1757338292676,0.06,215.03,214.98,36.72]
[1757338292977,0.69,215.02,214.98,36.72]
[1757338293278,0.06,215.03,215.01,26.0]
[1757338293573,0.06,215.03,215.02,36.72]
[1757338294371,0.75,215.03,215.01,26.0]
[1757338294576,0.75,215.03,215.02,62.72]
[1757338294777,0.06,215.03,215.02,36.72]
[1757338295802,0.76,215.03,215.01,26.0]
[1757338295989,0.06,215.03,214.96,4.65200918]
[1757338296281,0.7,215.02,214.98,26.0]
[1757338296583,0.06,215.03,214.99,36.72]
[1757338296765,0.06,215.03,215.02,26.0]
[1757338296965,0.06,215.03,215.02,62.72]
[1757338297567,0.76,215.03,215.02,62.72]
[1757338297883,5.41051388,215.03,215.02,36.75]
[1757338298961,5.41051388,215.03,215.02,0.03]
[1757338299168,5.41051388,215.03,215.02,36.75]
[1757338299384,0.76,215.03,215.02,36.75]
[1757338299565,0.06,215.03,215.02,36.75]
[1757338300483,5.41051388,215.03,215.02,0.03]
[1757338301068,5.41051388,215.03,215.02,36.75]
[1757338302698,0.06,215.03,215.02,36.75]
[1757338303473,0.06,215.03,215.02,37.41]
[1757338303668,0.06,215.03,215.02,36.75]
[1757338305877,0.06,215.03,215.02,42.06073016]
[1757338306401,0.06,215.03,215.02,0.03]
[1757338306588,0.06,215.03,215.02,36.75]
[1757338308490,0.06,215.03,215.02,0.03]
[1757338308698,0.06,215.03,215.02,36.79]
[1757338309685,0.06,215.03,215.02,36.77]
[1757338310081,0.76,215.03,215.02,0.03]
[1757338310481,0.76,215.03,215.02,36.77]
[1757338310685,0.76,215.03,215.02,0.03]
[1757338310882,0.76,215.03,215.02,36.77]
[1757338311096,0.76,215.03,215.02,0.03]
[1757338311283,0.76,215.03,215.02,36.77]
[1757338311690,5.41051388,215.03,215.02,36.77]
[1757338312891,5.41051388,215.03,215.02,0.03]
[1757338313093,5.41051388,215.03,215.02,36.75]
[1757338315704,5.41051388,215.03,215.02,0.03]
[1757338316092,5.41051388,215.03,215.02,32.37]
[1757338317486,4.71051388,215.03,215.02,32.37]
[1757338317805,0.06,215.03,215.02,32.37]
[1757338318008,0.76,215.03,215.02,36.75]
[1757338318186,21.4373346,215.03,215.02,0.03]
[1757338318384,24.93643708,215.03,215.02,0.03]
[1757338318701,37.6626578,215.03,215.02,0.03]
[1757338319900,42.31317168,215.03,215.02,0.03]
[1757338320098,16.45844821,215.03,215.02,0.03]
[1757338320401,4.71051388,215.03,215.02,0.03]
[1757338320604,15.29135695,215.03,215.02,0.03]
[1757338320802,5.41051388,215.03,215.02,0.03]
[1757338321497,0.06,215.03,215.02,0.69]
[1757338321803,0.06,215.03,215.02,37.41]
[1757338323006,0.06,215.03,215.02,0.69]
[1757338323190,0.06,215.03,215.02,37.41]
[1757338325093,0.06,215.03,215.02,42.06073016]
[1757338325598,0.06,215.03,215.02,42.52580317]
[1757338326102,0.06,215.03,215.02,37.87507301]
[1757338326305,0.06,215.03,215.02,42.52580317]
[1757338326609,0.06,215.03,215.02,37.41]
[1757338326788,0.06,215.03,215.02,42.06073016]
[1757338327191,0.06,215.03,215.02,37.41]
[1757338327407,0.06,215.03,215.02,0.69]
[1757338328116,0.06,215.03,215.02,37.41]
[1757338328524,0.06,215.03,215.02,0.69]
[1757338328812,0.06,215.03,215.02,42.52580317]
[1757338329189,0.06,215.03,215.02,37.43]
[1757338331743,0.06,215.03,215.02,42.54580317]
[1757338332229,0.06,215.04,215.02,42.54580317]
[1757338332421,0.06,215.06,215.05,26.0]
[1757338332624,0.06,215.08,215.05,76.41559401]
[1757338332936,0.06,215.08,215.06,0.65]
[1757338333527,0.1,215.18,215.07,0.46496489]
[1757338333718,0.1,215.18,215.11,26.0]
[1757338333925,4.74727782,215.18,215.15,26.0]
[1757338334123,0.72,215.17,215.16,36.8]
[1757338334841,0.72,215.17,215.09,26.65]
[1757338335136,0.72,215.17,215.13,26.0]
[1757338335333,4.64770403,215.16,215.14,36.8]
[1757338335512,5.36770403,215.16,215.14,36.8]
[1757338335711,4.64770403,215.16,215.09,0.65]
[1757338335925,10.58084307,215.14,215.1,62.8]
[1757338336141,10.58084307,215.14,215.11,36.8]
[1757338336435,0.72,215.13,215.11,36.8]
[1757338336936,11.30084307,215.12,215.03,11.71818012]
[1757338337111,10.58084307,215.1,215.04,36.8]
[1757338337313,15.95005967,215.09,215.02,0.68]
[1757338337622,27.57310118,215.09,215.02,0.03]
[1757338337823,10.58084307,215.05,215.03,36.8]
[1757338338032,0.72,215.04,215.03,36.8]
[1757338338423,10.58084307,215.06,215.03,36.8]
[1757338338630,0.72,215.08,215.03,36.8]
[1757338338833,15.23005967,215.09,215.04,0.65]
[1757338339021,4.6492166,215.09,215.03,36.8]
[1757338339223,10.58084307,215.07,215.02,0.03]
[1757338339420,10.58084307,215.06,215.03,36.8]
[1757338339645,0.72,215.05,215.03,36.8]
[1757338339940,0.72,215.05,215.02,0.03]
[1757338339941,0.72,215.04,215.02,0.03]
[1757338340326,0.72,215.04,215.03,36.82]
[1757338340527,0.72,215.04,215.02,0.03]
[1757338340729,24.64352834,215.03,215.02,0.03]
[1757338340931,14.06268527,215.03,215.02,0.03]
[1757338341227,28.82759987,215.0,214.99,0.03]
[1757338341431,28.82759987,215.0,214.99,0.41]
[1757338341633,29.54759987,215.0,214.99,0.41]
[1757338342228,0.46709126,215.08,214.99,25.09]
[1757338342544,11.30084307,215.02,214.99,25.09]
[1757338342844,0.72,215.01,214.99,25.09]
[1757338343048,11.30084307,215.01,214.99,25.09]
[1757338343227,11.30084307,215.01,214.99,0.03]
[1757338343542,15.95200425,215.01,215.0,37.0]
[1757338344346,15.95200425,215.01,214.99,0.03]
[1757338344529,10.58084307,215.0,214.99,37.01]
[1757338345132,11.30084307,215.0,214.99,37.01]
[1757338345344,10.58084307,215.01,214.99,37.01]
[1757338345529,10.58084307,215.02,214.99,37.01]
[1757338345728,11.30084307,215.02,214.99,37.01]
[1757338345927,11.30084307,215.01,214.99,37.01]
[1757338346128,0.72,215.0,214.99,37.01]
[1757338346343,10.58084307,215.01,214.99,37.01]
[1757338346639,16.74409914,215.03,215.0,37.0]
[1757338346945,10.58084307,215.01,215.0,37.0]
[1757338347242,0.72,215.01,215.0,37.0]
[1757338347542,15.95178953,215.01,215.0,37.0]
[1757338347841,13.59559401,215.0,214.99,0.03]
[1757338348043,71.24352834,215.0,214.99,0.03]
[1757338348247,71.24352834,215.0,214.95,0.03]
[1757338348248,71.96352834,215.0,214.95,0.03]
[1757338348543,10.58084307,214.97,214.95,37.01]
[1757338348747,10.58084307,214.96,214.95,37.01]
[1757338348929,11.30084307,214.96,214.95,37.01]
[1757338349133,24.89643708,214.96,214.95,0.03]
[1757338349528,29.54846536,214.96,214.95,0.03]
[1757338350824,60.19559401,214.95,214.9,0.03]
[1757338351026,13.59559401,214.93,214.9,0.03]
[1757338351229,24.17643708,214.91,214.9,0.03]
[1757338351429,28.82954768,214.91,214.9,0.03]
[1757338351728,29.54954768,214.91,214.9,0.03]
[1757338352437,4.6531106,214.91,214.9,0.03]
[1757338352942,46.6,214.94,214.9,0.03]
[1757338352943,0.72,214.99,214.9,26.68]
[1757338353139,10.58084307,214.97,214.9,26.68]
[1757338353343,10.58084307,214.96,214.9,26.68]
[1757338353549,4.6522447,214.95,214.9,26.68]
[1757338353735,16.28285647,214.95,214.9,26.68]
[1757338353935,10.58084307,214.94,214.9,26.03]
[1757338354135,10.58084307,214.94,214.91,37.1]
[1757338354945,16.28285647,214.95,214.91,37.1]
[1757338355141,10.58084307,214.94,214.91,37.1]
[1757338355355,10.58084307,214.92,214.91,37.1]
[1757338355529,15.23373717,214.92,214.91,37.1]
[1757338356529,29.50933118,214.92,214.9,0.03]
[1757338356731,25.32352834,214.91,214.9,0.03]
[1757338356933,14.74268527,214.91,214.9,0.03]
[1757338357136,25.32352834,214.91,214.9,0.03]
[1757338357543,29.97663894,214.91,214.9,0.03]
[1757338358466,162.37663894,214.91,214.87,0.03]
[1757338358637,26.0,214.85,214.8,0.2]
[1757338358841,24.17643708,214.81,214.8,1e-08]
[1757338359046,34.75728015,214.81,214.8,1e-08]
[1757338359357,24.85643708,214.81,214.8,1e-08]
[1757338359737,29.51171383,214.81,214.8,1e-08]
[1757338359939,29.97880509,214.81,214.8,1e-08]
[1757338360965,19.39796202,214.81,214.8,1e-08]